fUSD/lending_fUSD_20250305
["ID","MTS","AMOUNT","RATE_DAILY","PERIOD"]
[355450186,1741177841698,-659.28,0.00011149,2]
[355450187,1741177841708,-659.28,0.00011149,2]
[355450188,1741177841719,-659.28,0.00011149,2]
[355450189,1741177841728,-659.28,0.00011149,2]
[355450190,1741177841738,-659.28,0.00011149,2]
[355450191,1741177841749,-639.74,0.00011149,2]
[355450192,1741177841760,-500.0,0.00011149,2]
[355450193,1741177841773,-500.0,0.00011149,2]
[355450194,1741177841783,-11750.75,0.00011149,2]
[355450195,1741177841793,-530.09483011,0.00011149,2]
[355450196,1741177841803,-1657.38,0.00011149,2]
[355450197,1741177841812,-500.0,0.00011149,2]
[355450198,1741177841823,-500.0,0.00011149,2]
[355450199,1741177841832,-776.73,0.00011149,2]
[355450200,1741177841843,-719.33,0.00011149,2]
[355450201,1741177841852,-2226.82,0.00011149,2]
[355450202,1741177841863,-2665.68,0.00011149,2]
[355450203,1741177841874,-500.0,0.00011149,2]
[355450204,1741177841883,-6133.38,0.00011149,2]
[355450205,1741177841894,-1348.58,0.00011149,2]
[355450206,1741177841903,-500.0,0.00011149,2]
[355450207,1741177841912,-2486.23,0.00011149,2]
[355450208,1741177841922,-673.11,0.00011149,2]
[355450209,1741177841932,-500.0,0.00011149,2]
[355450210,1741177841942,-500.0,0.00011149,2]
[355450211,1741177841951,-500.0,0.00011149,2]
[355450212,1741177841961,-500.0,0.00011149,2]
[355450213,1741177841971,-500.0,0.00011149,2]
[355450214,1741177841981,-1057.1,0.00011149,2]
[355450215,1741177841991,-500.0,0.00011149,2]
[355450216,1741177842000,-567.99,0.00011149,2]
[355450217,1741177842010,-1259.24,0.00011149,2]
[355450218,1741177842019,-500.0,0.00011149,2]
[355450219,1741177842029,-172.15107666,0.00011149,2]
[355450220,1741177842039,-2526.35,0.00011149,2]
[355450221,1741177842048,-500.0,0.00011149,2]
[355450222,1741177842058,-761.29,0.00011149,2]
[355450223,1741177842068,-1544.62,0.00011149,2]
[355450224,1741177842077,-889.8,0.00011149,2]
[355450225,1741177842087,-506.76122368,0.00011149,2]
[355450226,1741177842096,-555.62,0.00011149,2]
[355450227,1741177842106,-923.07,0.00011149,2]
[355450228,1741177842116,-500.0,0.00011149,2]
[355450229,1741177842126,-2315.23,0.00011149,2]
[355450230,1741177842135,-1126.43,0.00011149,2]
[355450231,1741177842146,-211.74822327,0.00011149,2]
[355450232,1741177842155,-500.0,0.00011149,2]
[355450233,1741177842165,-1527.08,0.00011149,2]
[355450234,1741177842175,-2045.93,0.00011149,2]
[355450235,1741177842184,-500.0,0.00011149,2]
[355450236,1741177842194,-2521.7,0.00011149,2]
[355450237,1741177842203,-500.0,0.00011149,2]
[355450238,1741177842213,-2732.9,0.00011149,2]
[355450239,1741177842222,-2796.25,0.00011149,2]
[355450240,1741177842232,-960.09,0.00011149,2]
[355450241,1741177842241,-500.0,0.00011149,2]
[355450242,1741177842250,-2219.62,0.00011149,2]
[355450243,1741177842260,-500.0,0.00011149,2]
[355450244,1741177842270,-3928.33,0.00011149,2]
[355450245,1741177842280,-500.0,0.00011149,2]
[355450246,1741177842289,-1049.28,0.00011149,2]
[355450247,1741177842300,-10940.62,0.00011149,2]
[355450248,1741177842308,-6968.92,0.00011149,2]
[355450249,1741177842318,-509.86109048,0.00011149,2]
[355450250,1741177842327,-667.84,0.00011149,2]
[355450251,1741177842337,-32552.64,0.00011149,2]
[355450252,1741177842346,-500.0,0.00011149,2]
[355450253,1741177842356,-3212.79,0.00011149,2]
[355450254,1741177842365,-3562.13,0.00011149,2]
[355450255,1741177842376,-513.11917052,0.00011149,2]
[355450256,1741177842386,-500.0,0.00011149,2]
[355450257,1741177842395,-910.59,0.00011149,2]
[355450258,1741177842404,-1260.05,0.00011149,2]
[355450259,1741177842413,-2873.17,0.00011149,2]
[355450260,1741177842423,-1131.03,0.00011149,2]
[355450261,1741177842432,-544.0,0.0001115,2]
[355450262,1741177842441,-28675.21726679,0.0001115,2]
[355450263,1741177842451,-171952.64854556,0.0001115,2]
[355450264,1741177842471,-1814.46,0.0001115,2]
[355450265,1741177842482,-439.215,0.0001115,2]
[355450266,1741177842508,-48776.84238991,0.0001115,2]
[355450267,1741177842520,-2455.2274818,0.0001115,2]
[355450268,1741177842565,-1917.86502162,0.0001115,2]
[355450269,1741177842576,-417.45361277,0.0001115,2]
[355450270,1741177842587,-1506.61725268,0.0001115,2]
[355450271,1741177842614,-1115.45,0.0001115,2]
[355450272,1741177842626,-1058.45,0.0001115,2]
[355450301,1741177843669,-500.0,0.00011147,2]
[355450303,1741177843678,-500.0,0.00011147,2]
[355450304,1741177843687,-233941.805,0.0001115,2]
[355450307,1741177843698,-1051.7425531,0.0001115,2]
[355450309,1741177843709,-1628.162577,0.0001115,2]
[355450312,1741177843730,-16235.25070065,0.0001115,2]
[355450316,1741177843769,-2336.33160904,0.0001115,2]
[355450318,1741177843783,-1367.42624147,0.0001115,2]
[355450329,1741177843906,-2371.87351766,0.0001115,2]
[355450399,1741177844661,-565.16,0.00011147,2]
[355450401,1741177844671,-1112.98091062,0.0001115,2]
[355450404,1741177844683,-726473.84181206,0.0001115,2]
[355450406,1741177844695,-550.0,0.0001115,2]
[355450466,1741177845378,-945.33184005,0.0001115,2]
[355450519,1741177846204,-6033.1,0.00011148,2]
[355450521,1741177846213,-1544.97,0.00011148,2]
[355450523,1741177846223,-500.0,0.00011149,2]
[355450525,1741177846232,-1012.78238517,0.0001115,2]
[355450781,1741177891243,1735.6,8.276e-05,2]
[355450782,1741177928474,1000.0,0.0001016,2]
[355450783,1741178005720,6203.14,0.0001018,2]
[355450784,1741178005744,10000.0,0.0001018,2]
[355450785,1741178005767,7696.86,0.0001018,2]
[355450786,1741178011396,1035.05,0.0001018,2]
[355450787,1741178016519,1268.09,0.00010142,2]
[355450788,1741178016540,731.91,0.00010142,2]
[355450789,1741178017449,463.85,0.00010142,2]
[355450790,1741178021988,300.0,0.00010142,2]
[355450791,1741178128309,284.74,0.00010137,2]
[355450792,1741178132406,405.18,0.00010141,2]
[355450793,1741178153933,183.95,0.00010137,2]
[355450794,1741178255735,166.79,0.00010108,2]
[355450795,1741178418909,474.56,0.000101,2]
[355450796,1741178529574,4299.73,0.00010092,2]
[355450797,1741178537946,150.0,0.00010092,7]
[355450798,1741178710823,2689.29,0.0001,2]
[355450799,1741178710847,10000.0,0.0001,2]
[355450800,1741178710868,6253.23,0.0001,2]
[355450803,1741178824055,3746.77,0.00010163,2]
[355450804,1741178824078,4717.05,0.00010163,2]
[355450877,1741178915433,200.0,0.00010094,2]
[355450879,1741178945125,1400.9,0.00010099,2]
[355450881,1741178961401,1786.72,8.219e-05,2]
[355450898,1741179032398,-467.06727,0.000104,3]
[355450899,1741179032462,-132.93273,0.000104,3]
[355450900,1741179032475,-178.96,0.00010431,2]
[355450901,1741179032485,-356.4284398,0.00010481,2]
[355450902,1741179032531,-1430.2915602,0.00010481,2]
[355450903,1741179032540,-1200.0,0.000105,3]
[355450904,1741179032550,-1800.0,0.000106,3]
[355450905,1741179032560,-2400.0,0.000107,3]
[355450906,1741179032571,-183.25,0.00010724,2]
[355450907,1741179032581,-300.0,0.00010799,2]
[355450908,1741179032591,-3000.0,0.000108,3]
[355450909,1741179032601,-600.0,0.000109,3]
[355450910,1741179032610,-274.0,0.00011,2]
[355450911,1741179032619,-300.0,0.00011,2]
[355450912,1741179032628,-300.0,0.00011,2]
[355450913,1741179032639,-300.0,0.00011,2]
[355450914,1741179032648,-200.0,0.00011,3]
[355450915,1741179032658,-550.0,0.00011,2]
[355450916,1741179032668,-2496.72471324,0.00011001,2]
[355450917,1741179032678,-1263.23466764,0.00011039,2]
[355451142,1741179038270,-1698.77732387,0.00011039,2]
[355451171,1741179038560,-433.27800849,0.00011039,2]
[355451173,1741179038571,-167.41,0.00011039,2]
[355451175,1741179038581,-150.0,0.00011039,2]
[355451177,1741179038591,-34681.62732198,0.0001104,2]
[355451179,1741179038604,-1360.63906656,0.0001104,2]
[355451322,1741179040327,-8256.24601442,0.0001104,2]
[355451323,1741179040338,-4000.0,0.0001104,2]
[355451324,1741179040348,-1000.2698,0.00011046,2]
[355451325,1741179040357,-5767.1054,0.00011046,2]
[355451326,1741179040367,-2500.0,0.00011046,2]
[355451327,1741179040378,-316.38017734,0.00011047,2]
[355451328,1741179040388,-160.80543907,0.0001105,2]
[355451329,1741179040398,-4000.0,0.0001105,2]
[355451330,1741179040408,-2496.72471324,0.00011079,2]
[355451331,1741179040417,-4000.0,0.0001108,2]
[355451332,1741179040427,-2496.72471324,0.00011091,2]
[355451333,1741179040437,-187.93777001,0.00011099,2]
[355451334,1741179040447,-187.93776992,0.00011099,2]
[355451335,1741179040456,-187.93776992,0.00011099,2]
[355451336,1741179040465,-187.93776992,0.00011099,2]
[355451337,1741179040474,-187.93776992,0.00011099,2]
[355451338,1741179040484,-1271.26021423,0.00011099,2]
[355451339,1741179040493,-1271.26021423,0.00011099,2]
[355451340,1741179040503,-1271.26021423,0.00011099,2]
[355451341,1741179040513,-1271.26021423,0.00011099,2]
[355451342,1741179040523,-1271.26021423,0.00011099,2]
[355451343,1741179040532,-1271.26021423,0.00011109,2]
[355451344,1741179040542,-187.93776992,0.0001111,2]
[355451345,1741179040551,-4000.0,0.0001112,2]
[355451346,1741179040561,-1271.26021423,0.00011122,2]
[355451347,1741179040572,-187.93776992,0.00011122,2]
[355451348,1741179040581,-1271.26021423,0.00011135,2]
[355451349,1741179040591,-187.93776992,0.00011135,2]
[355451350,1741179040601,-500.0,0.00011145,2]
[355451352,1741179040610,-500.0,0.00011145,2]
[355451354,1741179040619,-1036.03,0.00011145,2]
[355451355,1741179040628,-703.61,0.00011145,2]
[355451356,1741179040638,-329.09139022,0.00011145,2]
[355451357,1741179040647,-893.89,0.00011146,2]
[355451358,1741179040656,-845.41,0.00011146,2]
[355451359,1741179040665,-709.45,0.00011146,2]
[355451360,1741179040674,-500.0,0.00011146,2]
[355451361,1741179040684,-500.0,0.00011146,2]
[355451362,1741179040693,-1073.84,0.00011146,2]
[355451363,1741179040702,-664.64,0.00011146,2]
[355451364,1741179040712,-1097.5,0.00011146,2]
[355451365,1741179040721,-598.3,0.00011146,2]
[355451366,1741179040731,-506.33,0.00011146,2]
[355451367,1741179040740,-500.0,0.00011146,2]
[355451368,1741179040750,-500.0,0.00011146,2]
[355451369,1741179040760,-617.96,0.00011146,2]
[355451370,1741179040769,-896.82,0.00011146,2]
[355451371,1741179040779,-500.0,0.00011146,2]
[355451372,1741179040788,-536.02,0.00011146,2]
[355451373,1741179040797,-500.0,0.00011146,2]
[355451374,1741179040807,-500.0,0.00011146,2]
[355451375,1741179040816,-157.114532,0.00011146,2]
[355451376,1741179040825,-1069.01,0.00011146,2]
[355451377,1741179040835,-585.56,0.00011146,2]
[355451378,1741179040844,-559.93,0.00011146,2]
[355451379,1741179040853,-500.0,0.00011146,2]
[355451380,1741179040862,-500.0,0.00011146,2]
[355451381,1741179040871,-520.79258809,0.00011146,2]
[355451382,1741179040881,-1168.48,0.00011146,2]
[355451383,1741179040890,-500.0,0.00011146,2]
[355451384,1741179040899,-579.4,0.00011146,2]
[355451385,1741179040909,-1021.03,0.00011146,2]
[355451386,1741179040919,-500.0,0.00011146,2]
[355451387,1741179040928,-828.7,0.00011146,2]
[355451388,1741179040939,-500.0,0.00011146,2]
[355451389,1741179040948,-1385.51,0.00011146,2]
[355451390,1741179040957,-556.45,0.00011146,2]
[355451391,1741179040967,-500.0,0.00011146,2]
[355451392,1741179040976,-913.42,0.00011146,2]
[355451393,1741179040985,-550.18,0.00011146,2]
[355451394,1741179040995,-500.0,0.00011146,2]
[355451395,1741179041004,-500.56,0.00011146,2]
[355451396,1741179041014,-747.04,0.00011146,2]
[355451397,1741179041023,-510.18418293,0.00011146,2]
[355451398,1741179041032,-500.0,0.00011146,2]
[355451399,1741179041042,-500.0,0.00011146,2]
[355451400,1741179041052,-500.0,0.00011146,2]
[355451401,1741179041061,-1000.08,0.00011146,2]
[355451402,1741179041071,-1507.89,0.00011146,2]
[355451403,1741179041081,-570.65,0.00011146,2]
[355451404,1741179041090,-500.0,0.00011146,2]
[355451405,1741179041099,-500.0,0.00011146,2]
[355451406,1741179041108,-536.73,0.00011146,2]
[355451407,1741179041117,-500.0,0.00011146,2]
[355451408,1741179041126,-705.78,0.00011146,2]
[355451409,1741179041136,-500.0,0.00011146,2]
[355451410,1741179041145,-1487.24,0.00011146,2]
[355451411,1741179041155,-500.0,0.00011146,2]
[355451412,1741179041164,-571.34,0.00011146,2]
[355451413,1741179041176,-488.76823589,0.00011146,2]
[355451414,1741179041188,-597.44,0.00011146,2]
[355451415,1741179041198,-1562.87,0.00011146,2]
[355451416,1741179041207,-507.43,0.00011146,2]
[355451417,1741179041218,-500.0,0.00011146,2]
[355451418,1741179041227,-1269.93,0.00011146,2]
[355451419,1741179041237,-1372.35,0.00011146,2]
[355451420,1741179041247,-1334.36,0.00011146,2]
[355451421,1741179041257,-655.28,0.00011146,2]
[355451422,1741179041266,-500.0,0.00011146,2]
[355451423,1741179041276,-1200.47,0.00011146,2]
[355451424,1741179041285,-5781.72,0.00011146,2]
[355451425,1741179041295,-1405.75,0.00011146,2]
[355451426,1741179041304,-801.74,0.00011146,2]
[355451427,1741179041314,-500.0,0.00011146,2]
[355451428,1741179041324,-500.0,0.00011146,2]
[355451429,1741179041334,-1989.75,0.00011146,2]
[355451430,1741179041343,-500.0,0.00011146,2]
[355451431,1741179041353,-500.0,0.00011146,2]
[355451432,1741179041362,-1510.85,0.00011146,2]
[355451433,1741179041373,-1205.37,0.00011146,2]
[355451434,1741179041382,-887.9,0.00011146,2]
[355451435,1741179041392,-500.0,0.00011146,2]
[355451436,1741179041401,-629.75,0.00011146,2]
[355451437,1741179041411,-1707.58,0.00011146,2]
[355451438,1741179041421,-1189.81,0.00011146,2]
[355451439,1741179041431,-2283.65,0.00011146,2]
[355451441,1741179041440,-2055.94,0.00011146,2]
[355451443,1741179041450,-6737.9,0.00011146,2]
[355451444,1741179041459,-1317.74,0.00011146,2]
[355451445,1741179041468,-500.0,0.00011146,2]
[355451446,1741179041477,-1215.7,0.00011146,2]
[355451447,1741179041487,-500.0,0.00011146,2]
[355451448,1741179041497,-3315.68,0.00011146,2]
[355451449,1741179041506,-729.04,0.00011146,2]
[355451450,1741179041516,-1638.65,0.00011146,2]
[355451451,1741179041526,-500.0,0.00011146,2]
[355451452,1741179041536,-1907.53,0.00011146,2]
[355451453,1741179041545,-500.0,0.00011146,2]
[355451454,1741179041555,-500.0,0.00011146,2]
[355451455,1741179041565,-1233.11,0.00011146,2]
[355451456,1741179041575,-500.0,0.00011146,2]
[355451457,1741179041584,-5585.96,0.00011146,2]
[355451458,1741179041593,-1497.06,0.00011146,2]
[355451459,1741179041603,-7166.5,0.00011146,2]
[355451460,1741179041612,-949.74,0.00011146,2]
[355451461,1741179041622,-500.0,0.00011146,2]
[355451462,1741179041633,-1144.62,0.00011146,2]
[355451463,1741179041642,-2759.24,0.00011146,2]
[355451464,1741179041652,-558.65,0.00011146,2]
[355451465,1741179041661,-6525.06,0.00011146,2]
[355451466,1741179041670,-886.69,0.00011146,2]
[355451467,1741179041679,-2189.6,0.00011146,2]
[355451468,1741179041688,-1207.01,0.00011146,2]
[355451469,1741179041698,-884.39,0.00011146,2]
[355451470,1741179041707,-2026.18,0.00011146,2]
[355451471,1741179041717,-606.03,0.00011146,2]
[355451472,1741179041726,-2280.56,0.00011146,2]
[355451473,1741179041736,-1518.76,0.00011146,2]
[355451474,1741179041745,-1925.67,0.00011146,2]
[355451475,1741179041755,-1038.77,0.00011146,2]
[355451476,1741179041764,-1950.75,0.00011146,2]
[355451477,1741179041773,-6148.77,0.00011146,2]
[355451478,1741179041782,-500.0,0.00011146,2]
[355451479,1741179041791,-906.13,0.00011146,2]
[355451480,1741179041801,-2182.19,0.00011146,2]
[355451481,1741179041810,-640.38,0.00011146,2]
[355451482,1741179041820,-500.0,0.00011146,2]
[355451483,1741179041830,-1563.66,0.00011146,2]
[355451484,1741179041839,-500.0,0.00011146,2]
[355451485,1741179041849,-3273.5,0.00011146,2]
[355451486,1741179041861,-1658.85,0.00011146,2]
[355451487,1741179041873,-537.73,0.00011146,2]
[355451488,1741179041883,-717.44,0.00011146,2]
[355451489,1741179041893,-3612.46,0.00011146,2]
[355451490,1741179041905,-500.0,0.00011146,2]
[355451491,1741179041915,-635.19,0.00011146,2]
[355451492,1741179041926,-541.89,0.00011146,2]
[355451493,1741179041937,-4068.0,0.00011146,2]
[355451494,1741179041946,-2598.84,0.00011146,2]
[355451495,1741179041956,-2270.42,0.00011146,2]
[355451496,1741179041966,-873.25,0.00011146,2]
[355451497,1741179041976,-335.93739304,0.00011146,2]
[355451498,1741179041987,-2079.94,0.00011146,2]
[355451499,1741179041997,-10288.0737056,0.00011146,2]
[355451500,1741179042007,-641.11,0.00011146,2]
[355451501,1741179042016,-2044.37,0.00011146,2]
[355451502,1741179042026,-500.0,0.00011146,2]
[355451503,1741179042036,-1945.15,0.00011146,2]
[355451504,1741179042046,-3987.54,0.00011146,2]
[355451505,1741179042055,-2467.24,0.00011146,2]
[355451506,1741179042067,-5893.2,0.00011146,2]
[355451507,1741179042076,-1254.99,0.00011146,2]
[355451508,1741179042086,-573.54,0.00011146,2]
[355451509,1741179042095,-1933.54,0.00011146,2]
[355451510,1741179042105,-500.0,0.00011146,2]
[355451511,1741179042115,-1336.21,0.00011146,2]
[355451512,1741179042125,-634.52,0.00011146,2]
[355451513,1741179042134,-6563.03,0.00011146,2]
[355451514,1741179042144,-2404.21,0.00011146,2]
[355451515,1741179042154,-2842.02,0.00011146,2]
[355451516,1741179042163,-505.77680475,0.00011146,2]
[355451517,1741179042173,-500.0,0.00011146,2]
[355451518,1741179042187,-500.0,0.00011146,2]
[355451519,1741179042197,-500.0,0.00011146,2]
[355451520,1741179042206,-500.0,0.00011146,2]
[355451521,1741179042215,-1494.98,0.00011146,2]
[355451522,1741179042226,-751.17,0.00011146,2]
[355451523,1741179042236,-19736.25,0.00011146,2]
[355451524,1741179042246,-549.25,0.00011146,2]
[355451525,1741179042258,-2150.39,0.00011146,2]
[355451526,1741179042270,-3590.72,0.00011146,2]
[355451527,1741179042280,-1640.68,0.00011146,2]
[355451528,1741179042290,-500.0,0.00011146,2]
[355451529,1741179042299,-1185.23,0.00011146,2]
[355451530,1741179042310,-1250.22,0.00011146,2]
[355451531,1741179042321,-718.58,0.00011146,2]
[355451532,1741179042331,-11792.95,0.00011146,2]
[355451533,1741179042340,-500.0,0.00011146,2]
[355451534,1741179042350,-8262.97,0.00011146,2]
[355451535,1741179042359,-1753.05,0.00011146,2]
[355451536,1741179042368,-962.32,0.00011146,2]
[355451537,1741179042378,-500.0,0.00011146,2]
[355451538,1741179042387,-500.0,0.00011146,2]
[355451539,1741179042397,-542.87,0.00011146,2]
[355451540,1741179042406,-1663.69,0.00011146,2]
[355451541,1741179042415,-500.0,0.00011146,2]
[355451542,1741179042425,-3016.33,0.00011146,2]
[355451543,1741179042435,-850.29,0.00011146,2]
[355451544,1741179042444,-1102.65,0.00011146,2]
[355451545,1741179042453,-534.34098931,0.00011146,2]
[355451546,1741179042463,-566.31461326,0.00011146,2]
[355451547,1741179042472,-500.0,0.00011147,2]
[355451548,1741179042482,-500.0,0.00011147,2]
[355451549,1741179042491,-721.55,0.00011147,2]
[355451550,1741179042500,-731.9,0.00011147,2]
[355451551,1741179042510,-500.0,0.00011147,2]
[355451552,1741179042519,-511.50061194,0.00011147,2]
[355451553,1741179042528,-925.32,0.00011147,2]
[355451554,1741179042539,-500.0,0.00011147,2]
[355451555,1741179042549,-748.41,0.00011147,2]
[355451556,1741179042558,-500.0,0.00011147,2]
[355451557,1741179042568,-500.0,0.00011147,2]
[355451558,1741179042578,-823.02,0.00011147,2]
[355451559,1741179042588,-661.84,0.00011147,2]
[355451560,1741179042597,-935.66,0.00011147,2]
[355451561,1741179042606,-338.19293445,0.00011147,2]
[355451562,1741179042616,-500.0,0.00011147,2]
[355451563,1741179042626,-789.37,0.00011147,2]
[355451564,1741179042637,-500.0,0.00011147,2]
[355451565,1741179042647,-163.95482943,0.00011147,2]
[355451566,1741179042656,-500.0,0.00011147,2]
[355451567,1741179042666,-616.21,0.00011147,2]
[355451568,1741179042675,-606.93,0.00011147,2]
[355451569,1741179042685,-500.0,0.00011147,2]
[355451570,1741179042695,-615.42,0.00011147,2]
[355451571,1741179042704,-525.58170673,0.00011147,2]
[355451572,1741179042713,-500.0,0.00011147,2]
[355451573,1741179042723,-580.14,0.00011147,2]
[355451574,1741179042733,-978.2,0.00011147,2]
[355451575,1741179042742,-860.58,0.00011147,2]
[355451576,1741179042751,-1109.82,0.00011147,2]
[355451577,1741179042761,-1828.5,0.00011147,2]
[355451578,1741179042771,-1139.45,0.00011147,2]
[355451579,1741179042779,-1104.39,0.00011147,2]
[355451580,1741179042789,-502.00624375,0.00011147,2]
[355451581,1741179042798,-627.93,0.00011147,2]
[355451582,1741179042807,-500.0,0.00011147,2]
[355451583,1741179042818,-538.95746696,0.00011147,2]
[355451584,1741179042828,-734.18,0.00011147,2]
[355451585,1741179042837,-813.85,0.00011147,2]
[355451586,1741179042846,-500.0,0.00011147,2]
[355451587,1741179042855,-519.11498797,0.00011147,2]
[355451588,1741179042865,-674.55,0.00011147,2]
[355451592,1741179043117,-500.0,0.00011147,2]
[355451593,1741179043126,-599.41,0.00011147,2]
[355451594,1741179043135,-1606.2,0.00011147,2]
[355451595,1741179043144,-512.29616738,0.00011147,2]
[355451596,1741179043153,-245.54828347,0.00011147,2]
[355451598,1741179043163,-1002.57,0.00011147,2]
[355451600,1741179043175,-995.89,0.00011147,2]
[355451602,1741179043184,-607.79,0.00011147,2]
[355451604,1741179043193,-500.0,0.00011147,2]
[355451606,1741179043203,-1194.78,0.00011147,2]
[355451607,1741179043212,-500.0,0.00011147,2]
[355451608,1741179043223,-257.71303625,0.00011147,2]
[355451611,1741179043232,-500.0,0.00011147,2]
[355451613,1741179043241,-500.0,0.00011147,2]
[355451615,1741179043250,-500.0,0.00011147,2]
[355451618,1741179043260,-1364.23,0.00011147,2]
[355451619,1741179043270,-500.0,0.00011147,2]
[355451620,1741179043279,-500.0,0.00011147,2]
[355451621,1741179043288,-500.0,0.00011147,2]
[355451622,1741179043297,-645.06,0.00011147,2]
[355451623,1741179043308,-1005.87,0.00011147,2]
[355451624,1741179043318,-505.32,0.00011147,2]
[355451625,1741179043327,-1870.78,0.00011147,2]
[355451626,1741179043337,-500.0,0.00011147,2]
[355451627,1741179043350,-500.0,0.00011147,2]
[355451628,1741179043361,-577.07447007,0.00011147,2]
[355451629,1741179043370,-2145.46,0.00011147,2]
[355451630,1741179043380,-1354.52,0.00011147,2]
[355451631,1741179043390,-594.21,0.00011147,2]
[355451632,1741179043399,-500.0,0.00011147,2]
[355451633,1741179043409,-689.76,0.00011147,2]
[355451634,1741179043419,-549.49905854,0.00011147,2]
[355451635,1741179043428,-1897.61,0.00011147,2]
[355451636,1741179043438,-729.57,0.00011147,2]
[355451637,1741179043448,-500.0,0.00011147,2]
[355451638,1741179043458,-500.0,0.00011147,2]
[355451639,1741179043467,-1724.32,0.00011147,2]
[355451640,1741179043476,-500.0,0.00011147,2]
[355451641,1741179043485,-500.0,0.00011147,2]
[355451642,1741179043495,-631.03,0.00011147,2]
[355451643,1741179043504,-500.0,0.00011147,2]
[355451644,1741179043514,-2387.52,0.00011147,2]
[355451645,1741179043525,-500.0,0.00011147,2]
[355451646,1741179043536,-500.0,0.00011147,2]
[355451647,1741179043546,-500.0,0.00011147,2]
[355451648,1741179043555,-502.0608504,0.00011147,2]
[355451649,1741179043564,-500.0,0.00011147,2]
[355451650,1741179043575,-500.0,0.00011147,2]
[355451651,1741179043584,-1343.16,0.00011147,2]
[355451652,1741179043594,-1161.22,0.00011147,2]
[355451654,1741179043604,-920.09,0.00011147,2]
[355451656,1741179043613,-500.0,0.00011147,2]
[355451657,1741179043623,-740.23,0.00011147,2]
[355451658,1741179043633,-500.0,0.00011147,2]
[355451659,1741179043643,-1005.56,0.00011147,2]
[355451660,1741179043653,-1326.36,0.00011147,2]
[355451661,1741179043663,-689.36,0.00011147,2]
[355451662,1741179043673,-500.0,0.00011147,2]
[355451663,1741179043684,-1372.57,0.00011147,2]
[355451664,1741179043694,-720.4,0.00011147,2]
[355451665,1741179043704,-922.63,0.00011147,2]
[355451666,1741179043715,-517.98926354,0.00011147,2]
[355451667,1741179043725,-1013.46,0.00011147,2]
[355451668,1741179043735,-1406.7,0.00011147,2]
[355451670,1741179043745,-1207.55,0.00011147,2]
[355451671,1741179043755,-795.55,0.00011147,2]
[355451672,1741179043764,-500.0,0.00011147,2]
[355451673,1741179043774,-767.77,0.00011147,2]
[355451675,1741179043783,-772.77,0.00011147,2]
[355451676,1741179043794,-884.61,0.00011147,2]
[355451677,1741179043804,-1231.44,0.00011147,2]
[355451678,1741179043814,-1079.5,0.00011147,2]
[355451679,1741179043825,-1203.74,0.00011147,2]
[355451680,1741179043836,-500.0,0.00011147,2]
[355451681,1741179043846,-927.25,0.00011147,2]
[355451682,1741179043856,-1196.45,0.00011147,2]
[355451684,1741179043866,-500.0,0.00011147,2]
[355451686,1741179043876,-1755.77,0.00011147,2]
[355451687,1741179043888,-500.0,0.00011147,2]
[355451689,1741179043898,-1197.8,0.00011147,2]
[355451690,1741179043908,-770.0,0.00011147,2]